bitfinex/quotes_SOLUSD_20250101
["timestamp","ask_amount","ask_price","bid_price","bid_amount"]
[1735744795657,6.39,190.94,190.86,23.776884]
[1735744795993,6.39,190.94,190.84,17.35017764]
[1735744796193,6.39,190.94,190.83,36.56456134]
[1735744796397,6.39,190.94,190.84,23.776884]
[1735744796927,6.39,190.94,190.84,40.34144534]
[1735744797152,6.39,190.94,190.84,23.776884]
[1735744797927,6.39,190.94,190.84,40.34144534]
[1735744798519,6.39,190.94,190.84,23.776884]
[1735744799622,6.39,190.94,190.86,23.776884]
[1735744800333,6.39,190.94,190.83,20.0]
[1735744800725,6.39,190.94,190.84,23.776884]
[1735744800918,20.0,190.91,190.8,10.57965659]
[1735744801235,20.0,190.91,190.81,23.776884]
[1735744801832,20.0,190.91,190.79,23.68285659]
[1735744802140,20.0,190.91,190.8,23.776884]
[1735744802733,20.0,190.91,190.82,23.776884]
[1735744803441,6.39,190.94,190.84,23.776884]
[1735744803739,6.39,190.94,190.84,40.31470027]
[1735744804044,6.39,190.94,190.86,40.31470027]
[1735744804932,6.39,190.94,190.86,23.776884]
[1735744806041,6.39,190.94,190.84,16.53781627]
[1735744806231,6.39,190.94,190.85,40.31470027]
[1735744807232,6.39,190.94,190.87,23.776884]
[1735744807516,1.653,190.96,190.88,41.10027803]
[1735744808239,6.2528,190.99,190.9,23.776884]
[1735744808545,6.2528,190.99,190.92,23.776884]
[1735744808946,6.2528,190.99,190.92,24.56224062]
[1735744809119,21.6477,191.01,190.92,24.56224062]
[1735744809624,1.6477,191.01,190.94,23.776884]
[1735744810242,1.6477,191.01,190.94,40.31470027]
[1735744812330,1.6477,191.01,190.93,16.53781627]
[1735744812540,1.6477,191.01,190.92,36.53781627]
[1735744812744,1.6477,191.01,190.93,40.31470027]
[1735744815443,1.6477,191.01,190.93,23.776884]
[1735744815745,1.6477,191.01,190.93,40.31470027]
[1735744817659,1.6477,191.01,190.93,23.776884]
[1735744817961,1.6477,191.01,190.91,16.53781627]
[1735744818258,1.6477,191.01,190.93,23.776884]
[1735744819190,21.6477,191.01,190.91,23.776884]
[1735744820040,21.6477,191.01,190.9,40.31470027]
[1735744820245,21.6477,191.01,190.91,23.776884]
[1735744821751,21.6477,191.01,190.92,16.53781627]
[1735744821949,21.6477,191.01,190.93,23.776884]
[1735744822663,21.6477,191.01,190.92,23.776884]
[1735744822963,21.6477,191.01,190.88,10.57097668]
[1735744823465,21.6477,191.01,190.89,23.776884]
[1735744826165,21.6477,191.01,190.91,23.776884]
[1735744828445,21.6477,191.01,190.9,23.776884]
[1735744831269,21.6477,191.01,190.88,16.52048735]
[1735744831669,21.6477,191.01,190.89,23.776884]
[1735744835985,21.6477,191.01,190.89,17.30599111]
[1735744839184,21.6477,191.01,190.88,16.52048735]
[1735744839950,24.2654,191.01,190.88,16.52048735]
[1735744840157,20.0,191.0,190.87,23.776884]
[1735744840871,20.0,190.96,190.87,23.776884]
[1735744846083,1.5516,190.95,190.83,16.52048735]
[1735744847064,1.5516,190.95,190.84,23.776884]
[1735744847566,4.1701,190.95,190.82,23.776884]
[1735744847869,20.0,190.91,190.8,16.52048735]
[1735744848275,20.0,190.91,190.8,34.36099753]
[1735744849481,20.0,190.91,190.82,34.36099753]
[1735744849784,6.5232,190.94,190.84,34.36099753]
[1735744851484,6.5232,190.94,190.84,23.776884]
[1735744852571,6.5232,190.94,190.82,10.58411353]
[1735744853363,20.0,190.91,190.82,23.776884]
[1735744853974,20.0,190.91,190.79,10.58411353]
[1735744854167,20.0,190.91,190.79,34.36099753]
[1735744854376,1.5782,190.9,190.78,11.36997173]
[1735744854769,1.5782,190.9,190.79,10.58411353]
[1735744855090,1.5782,190.9,190.8,11.36997942]
[1735744856388,1.5782,190.9,190.82,23.776884]
[1735744856571,1.5782,190.9,190.78,0.78577413]
[1735744856773,1.5782,190.9,190.79,10.58411353]
[1735744858581,1.5782,190.9,190.8,23.776884]
[1735744859392,1.5782,190.9,190.79,23.776884]
[1735744862278,1.5782,190.9,190.75,10.58411353]
[1735744862279,20.0,190.86,190.75,10.58411353]
[1735744862579,1.5782,190.85,190.74,10.58411353]
[1735744862781,1.5782,190.85,190.75,23.776884]
[1735744863809,1.5782,190.85,190.77,23.776884]
[1735744864113,1.5782,190.85,190.8,10.58411353]
[1735744864275,6.5307,190.89,190.81,24.56271902]
[1735744867512,6.5307,190.89,190.82,10.58411353]
[1735744867718,6.5307,190.89,190.83,23.776884]
[1735744867916,1.5782,190.9,190.85,23.776884]
[1735744870735,1.5782,190.9,190.85,11.36981843]
[1735744870924,6.1097,190.94,190.87,23.776884]
[1735744872198,6.1097,190.94,190.87,24.56248821]
[1735744873197,6.1097,190.94,190.85,10.58411353]
[1735744873919,6.1097,190.94,190.84,0.78557518]
[1735744874119,6.1097,190.94,190.83,10.58411353]
[1735744874422,6.1097,190.94,190.84,11.36983827]
[1735744876814,6.1097,190.94,190.85,23.776884]
[1735744878694,6.1097,190.94,190.85,34.36099753]
[1735744878923,6.1097,190.94,190.85,35.14659237]
[1735744881103,6.1097,190.94,190.87,23.776884]
[1735744881304,6.1097,190.94,190.87,35.14654185]
[1735744882333,6.1097,190.94,190.85,10.58411353]
[1735744882503,6.1097,190.94,190.87,23.776884]
[1735744882904,1.5448,190.95,190.87,34.36099753]
[1735744885908,1.5448,190.95,190.89,23.776884]
[1735744891621,1.5448,190.95,190.89,34.36099753]
[1735744895237,6.2765,190.98,190.89,34.36099753]
[1735744895745,6.2765,190.98,190.91,23.776884]
[1735744899241,6.2765,190.98,190.9,0.78545332]
[1735744899445,6.2765,190.98,190.86,23.68221353]
[1735744899648,6.2765,190.98,190.87,23.776884]
[1735744900542,6.2765,190.98,190.88,0.78554335]
[1735744900864,6.2765,190.98,190.9,23.776884]
[1735744902556,6.2765,190.98,190.9,10.58411353]
[1735744902868,6.2765,190.98,190.92,23.776884]
[1735744906565,6.2765,190.98,190.91,23.776884]
[1735744910671,1.5022,191.0,190.91,34.36099753]
[1735744911055,1.5022,191.0,190.93,34.36099753]
[1735744913465,1.5022,191.0,190.93,23.776884]
[1735744914541,1.5022,191.0,190.91,10.58411353]
[1735744914953,1.5022,191.0,190.9,11.36942376]
[1735744915142,1.5022,191.0,190.89,30.58411353]
[1735744915449,1.5022,191.0,190.9,23.776884]
[1735744915650,1.5022,191.0,190.91,0.78544081]
[1735744916051,1.5022,191.0,190.91,11.36955434]
[1735744917859,1.5022,191.0,190.92,23.776884]
[1735744918038,1.5022,191.0,190.93,0.78532918]
[1735744918641,1.5022,191.0,190.9,0.78530238]
[1735744919167,1.5022,191.0,190.91,23.776884]
[1735744919547,20.0,190.99,190.9,0.78530238]
[1735744919751,20.0,190.99,190.87,0.7854139]
[1735744920541,20.0,190.99,190.88,23.776884]
[1735744920959,20.0,190.99,190.9,23.776884]
[1735744926043,20.0,190.99,190.92,23.776884]
[1735744926862,1.5022,191.0,190.92,34.36099753]
[1735744927074,1.5022,191.0,190.94,23.776884]
[1735744937776,6.1488,191.02,190.94,23.776884]
[1735744940780,6.1488,191.02,190.9,10.58411353]
[1735744940959,6.1488,191.02,190.88,13.0971]
[1735744941160,20.0,190.99,190.87,0.78531572]
[1735744941566,20.0,190.99,190.86,12.17991353]
[1735744941760,20.0,190.99,190.87,23.776884]
[1735744942565,20.0,190.99,190.85,10.58411353]
[1735744942768,20.0,190.95,190.84,0.7855846]
[1735744942968,20.0,190.95,190.83,10.58411353]
[1735744943299,20.0,190.95,190.84,23.776884]
[1735744943783,20.0,190.95,190.83,10.58411353]
[1735744944285,6.4405,190.93,190.81,11.36981901]
[1735744944684,6.4405,190.93,190.82,23.776884]
[1735744947167,20.0,190.9,190.79,10.58411353]
[1735744947772,20.0,190.9,190.8,23.776884]
[1735744947993,20.0,190.9,190.8,34.36099753]
[1735744950984,20.0,190.9,190.78,13.88983389]
[1735744950985,1.5248,190.89,190.79,10.58411353]
[1735744951996,1.5248,190.89,190.8,23.776884]
[1735744953569,1.5248,190.89,190.82,23.776884]
[1735744954178,1.5248,190.89,190.8,23.776884]
[1735744955291,1.5248,190.89,190.8,10.58411353]
[1735744957870,1.5248,190.89,190.8,11.36996227]
[1735744958071,1.5248,190.89,190.82,23.776884]
[1735744962680,1.5248,190.89,190.81,23.776884]
[1735744962886,1.5248,190.89,190.81,34.36099753]
[1735744963500,6.4405,190.93,190.86,10.58411353]
[1735744963895,6.4405,190.93,190.87,23.776884]
[1735744964480,6.4405,190.93,190.85,23.776884]
[1735744970186,6.4405,190.93,190.83,20.0]
[1735744970387,6.4405,190.93,190.79,13.1028]
[1735744970581,6.4405,190.93,190.8,11.36996432]
[1735744970782,6.4405,190.93,190.83,23.776884]
[1735744974391,6.4405,190.93,190.85,23.776884]
[1735744974591,6.4405,190.93,190.85,34.36099753]
[1735744979623,6.4405,190.93,190.85,23.776884]
[1735744980400,6.4405,190.93,190.83,34.36099753]
[1735744982695,6.4405,190.93,190.83,23.776884]
[1735744985914,6.4405,190.93,190.83,34.36099753]
[1735744988123,6.4405,190.93,190.83,23.776884]
[1735744991502,6.4405,190.93,190.83,34.36099753]
[1735744993016,6.4405,190.93,190.85,23.776884]
[1735744994244,6.4405,190.93,190.83,34.36099753]
[1735744995012,6.4405,190.93,190.83,35.14675299]
[1735744997406,6.4405,190.93,190.83,34.36099753]
[1735744997632,6.4405,190.93,190.83,23.776884]
[1735745000227,20.0,190.9,190.78,0.78582051]
[1735745000405,1.6439,190.89,190.77,8.20097326]
[1735745000605,1.6439,190.89,190.78,10.58411353]
[1735745001005,1.6439,190.89,190.77,8.20097326]
[1735745001230,6.1662,190.88,190.77,8.20097326]
[1735745001419,6.1662,190.88,190.79,20.0]
[1735745002429,6.1662,190.88,190.78,23.776884]
[1735745004530,6.1662,190.88,190.78,11.37013825]
[1735745004739,6.1662,190.88,190.8,43.776884]
[1735745005106,6.1662,190.88,190.82,23.776884]
[1735745005324,1.6439,190.89,190.82,11.36996422]
[1735745005533,6.3464,190.93,190.84,10.58411353]
[1735745005726,5.8464,190.93,190.86,23.776884]
[1735745005919,5.8464,190.93,190.86,34.36099753]
[1735745008530,5.8464,190.93,190.86,23.776884]
[1735745009037,5.8464,190.93,190.84,10.58411353]
[1735745009636,5.8464,190.93,190.85,23.776884]
[1735745010242,5.8464,190.93,190.84,23.776884]
[1735745013440,5.8464,190.93,190.82,30.58411353]
[1735745013926,5.8464,190.93,190.84,23.776884]
[1735745014842,5.8464,190.93,190.82,23.776884]
[1735745015349,5.8464,190.93,190.82,10.58411353]
[1735745015515,5.8464,190.93,190.82,11.36989319]
[1735745016152,5.8464,190.93,190.84,23.776884]
[1735745016936,5.8464,190.93,190.83,23.776884]
[1735745017241,5.8464,190.93,190.83,34.36099753]
[1735745017429,5.8464,190.93,190.85,23.776884]
[1735745018736,5.8464,190.93,190.85,34.36099753]
[1735745018930,5.8464,190.93,190.85,35.1466543]
[1735745019641,1.658,190.94,190.87,10.58411353]
[1735745019941,1.658,190.94,190.89,23.776884]
[1735745024645,1.658,190.94,190.86,34.36099753]
[1735745024851,1.658,190.94,190.86,23.776884]
[1735745025435,1.658,190.94,190.86,34.36099753]
[1735745028840,1.658,190.94,190.86,23.776884]
[1735745030254,21.658,190.94,190.8,10.58411353]
[1735745030556,21.658,190.94,190.81,23.776884]
[1735745030757,21.658,190.94,190.81,35.93579524]
[1735745030940,21.658,190.94,190.81,12.15891124]
[1735745031260,21.658,190.94,190.81,10.58411353]
[1735745031452,24.2766,190.94,190.81,10.58411353]
[1735745031652,24.2766,190.94,190.83,23.776884]
[1735745032460,24.2766,190.94,190.81,10.58411353]
[1735745032641,24.2766,190.94,190.82,23.776884]
[1735745032847,24.2766,190.94,190.81,34.36099753]
[1735745033563,24.2766,190.94,190.82,12.16001837]
[1735745033754,1.658,190.94,190.83,10.58411353]
[1735745033954,1.658,190.94,190.85,23.776884]
[1735745035363,1.658,190.94,190.83,34.36099753]
[1735745036744,21.658,190.94,190.83,23.776884]
[1735745036964,6.3894,190.93,190.81,10.58411353]
[1735745037267,6.3894,190.93,190.82,23.776884]
[1735745037767,6.3894,190.93,190.81,20.0]
[1735745038065,6.3894,190.93,190.82,23.776884]
[1735745038265,6.3894,190.93,190.8,30.58411353]
[1735745038462,20.0,190.9,190.78,0.78586389]
[1735745038669,20.0,190.9,190.77,13.1045]
[1735745038670,1.5244,190.89,190.77,23.68861353]
[1735745038847,1.5244,190.89,190.81,1.57589029]
[1735745039767,1.5244,190.89,190.79,23.776884]
[1735745040264,1.5244,190.89,190.78,23.776884]
[1735745040876,1.5244,190.89,190.76,10.58411353]
[1735745041347,1.5244,190.89,190.78,10.58411353]
[1735745042267,1.5244,190.89,190.8,23.776884]
[1735745042947,1.5244,190.89,190.8,11.37002756]
[1735745043147,1.5244,190.89,190.82,23.776884]
[1735745044468,1.5244,190.89,190.82,10.58411353]
[1735745044662,1.5244,190.89,190.83,11.36991835]
[1735745044849,6.3894,190.93,190.84,34.36099753]
[1735745047847,6.3894,190.93,190.84,23.776884]
[1735745048747,6.3894,190.93,190.84,10.58411353]
[1735745048948,1.5244,190.94,190.88,23.776884]
[1735745049168,1.5244,190.94,190.89,23.776884]
[1735745049347,6.0994,190.97,190.91,23.776884]
[1735745049972,6.0994,190.97,190.91,10.58411353]
[1735745051150,6.0994,190.97,190.92,23.776884]
[1735745051345,6.0994,190.97,190.9,10.58411353]
[1735745051576,6.0994,190.97,190.9,34.36099753]
[1735745051769,1.5473,190.99,190.91,23.776884]
[1735745051971,1.5473,190.99,190.9,23.776884]
[1735745052676,1.5473,190.99,190.92,10.58411353]
[1735745052858,1.5473,190.99,190.93,23.776884]
[1735745053257,1.5473,190.99,190.92,23.776884]
[1735745053856,1.5473,190.99,190.89,10.58411353]
[1735745054056,1.5473,190.99,190.88,10.58411353]
[1735745054686,1.5473,190.99,190.89,23.776884]
[1735745055063,1.5473,190.99,190.87,10.58411353]
[1735745055385,1.5473,190.99,190.87,23.776884]
[1735745057073,26.0994,190.98,190.85,10.58411353]
[1735745057477,26.0994,190.98,190.86,34.36099753]
[1735745058083,26.0994,190.98,190.85,34.36099753]
[1735745058685,26.0994,190.98,190.85,23.776884]
[1735745058887,26.0994,190.98,190.86,1.57446941]
[1735745058888,4.1655,190.97,190.86,1.57446941]
[1735745059686,4.1655,190.97,190.82,23.776884]
[1735745060462,1.5473,190.92,190.8,30.58411353]
[1735745060659,1.5473,190.92,190.81,23.776884]
[1735745061487,1.5473,190.92,190.81,34.36099753]
[1735745063194,1.5473,190.92,190.82,0.78586459]
[1735745063437,1.5473,190.92,190.87,23.776884]
[1735745064383,6.0994,190.96,190.89,23.776884]
[1735745069231,6.0994,190.96,190.85,23.776884]
[1735745069388,6.0994,190.96,190.86,11.36976999]
[1735745069717,6.0994,190.96,190.87,34.36099753]
[1735745073082,6.0994,190.96,190.85,10.58411353]
[1735745073723,20.0,190.93,190.85,23.776884]
[1735745074091,20.0,190.93,190.83,10.58411353]
[1735745074284,20.0,190.93,190.84,23.776884]
[1735745074480,20.0,190.93,190.84,25.35011854]
[1735745075200,20.0,190.93,190.83,23.776884]
[1735745075907,20.0,190.93,190.83,10.58411353]
[1735745079096,20.0,190.93,190.83,34.36099753]
[1735745080010,20.0,190.93,190.84,23.776884]
[1735745080196,1.5605,190.92,190.8,10.58411353]
[1735745080397,26.5085,190.91,190.76,21.29921966]
[1735745080598,26.5085,190.91,190.78,10.58411353]
[1735745080810,26.5085,190.91,190.79,23.776884]
[1735745081419,26.5085,190.91,190.81,23.776884]
[1735745082214,26.5085,190.91,190.79,23.776884]
[1735745082518,26.5085,190.91,190.79,34.36099753]
[1735745083608,26.5085,190.91,190.78,23.776884]
[1735745083808,2.6191,190.9,190.78,23.776884]
[1735745086096,2.6191,190.9,190.76,10.58411353]
[1735745086300,2.6191,190.9,190.77,10.58411353]
[1735745086492,2.6191,190.9,190.77,12.15546532]
[1735745086696,2.6191,190.9,190.78,23.776884]
[1735745087724,2.6191,190.9,190.78,10.58411353]
[1735745088424,2.6191,190.9,190.78,23.776884]
[1735745089502,2.6191,190.9,190.78,10.58411353]
[1735745092731,2.6191,190.9,190.78,23.776884]
[1735745093441,2.6191,190.9,190.78,10.58411353]
[1735745093631,2.6191,190.9,190.8,23.776884]
[1735745094131,26.5085,190.91,190.8,10.58411353]
[1735745095732,26.5085,190.91,190.79,23.776884]
[1735745096027,29.1276,190.91,190.79,23.776884]
[1735745097336,29.1276,190.91,190.76,0.78605839]
[1735745097517,1.5407,190.85,190.74,10.58411353]
[1735745097711,1.5407,190.85,190.75,23.776884]
[1735745097912,1.5407,190.85,190.75,25.34854162]
[1735745098430,1.5407,190.85,190.75,23.776884]
[1735745099150,1.5407,190.85,190.75,10.58411353]
[1735745100443,21.5407,190.85,190.73,10.58411353]
[1735745100629,6.6599,190.84,190.73,10.58411353]
[1735745101651,6.6599,190.84,190.74,23.776884]
[1735745101852,20.0,190.81,190.7,10.58411353]
[1735745102033,1.5407,190.8,190.7,10.58411353]
[1735745102415,1.5407,190.8,190.69,10.58411353]
[1735745103129,1.5407,190.8,190.71,23.776884]
[1735745103723,1.5407,190.8,190.73,23.776884]
[1735745103935,1.5407,190.8,190.74,10.58411353]
[1735745104122,6.6599,190.84,190.75,34.36099753]
[1735745104739,1.5407,190.85,190.79,20.0]
[1735745104926,1.5407,190.85,190.77,10.58411353]
[1735745105125,1.5407,190.85,190.76,10.58411353]
[1735745105329,1.5407,190.85,190.77,23.776884]
[1735745105527,1.5407,190.85,190.77,10.58411353]
[1735745106940,1.5407,190.85,190.78,10.58411353]
[1735745107248,8.2006,190.89,190.79,10.58411353]
[1735745107430,8.2006,190.89,190.8,10.58411353]
[1735745108146,8.2006,190.89,190.79,10.58411353]
[1735745108322,8.2006,190.89,190.81,20.0]
[1735745108840,8.2006,190.89,190.8,20.0]
[1735745109247,8.2006,190.89,190.81,23.776884]
[1735745109548,8.2006,190.89,190.81,34.36099753]
[1735745109716,8.2006,190.89,190.79,10.58411353]
[1735745111750,8.2006,190.89,190.78,34.36099753]
[1735745112052,8.2006,190.89,190.79,10.58411353]
[1735745113043,8.2006,190.89,190.8,10.58411353]
[1735745113241,8.2006,190.89,190.81,34.36099753]
[1735745113452,8.2006,190.89,190.82,10.58411353]
[1735745113647,8.2006,190.89,190.82,23.776884]
[1735745114026,8.2006,190.89,190.81,23.776884]
[1735745114218,8.2006,190.89,190.8,10.58411353]
[1735745114425,8.2006,190.89,190.8,20.0]
[1735745116042,1.5407,190.89,190.82,10.58411353]
[1735745119952,7.8234,190.93,190.84,10.58411353]
[1735745120649,7.8234,190.93,190.84,34.36099753]
[1735745120953,7.8234,190.93,190.84,10.58411353]
[1735745121359,7.8234,190.93,190.81,0.78575626]
[1735745121652,7.8234,190.93,190.82,10.58411353]
[1735745122055,7.8234,190.93,190.82,12.15462516]
[1735745122449,7.8234,190.93,190.83,30.58411353]
[1735745123735,7.8234,190.93,190.85,10.58411353]
[1735745124156,7.8234,190.93,190.84,34.36099753]
[1735745125840,7.8234,190.93,190.81,10.58411353]
[1735745126242,7.8234,190.93,190.82,34.36099753]
[1735745126755,7.8234,190.93,190.83,30.58411353]
[1735745131159,7.8234,190.93,190.86,34.36099753]
[1735745133941,1.5395,190.93,190.87,10.58411353]
[1735745135953,1.5395,190.93,190.86,10.58411353]
[1735745136150,1.5395,190.93,190.85,34.36099753]
[1735745136341,1.5395,190.93,190.84,10.58411353]
[1735745136746,1.5395,190.93,190.85,23.776884]
[1735745137557,1.5395,190.93,190.85,10.58411353]
[1735745143071,1.5395,190.93,190.84,34.36099753]
[1735745144882,1.5395,190.93,190.85,23.776884]
[1735745145597,1.5395,190.93,190.84,10.58411353]
[1735745146273,1.5395,190.93,190.83,34.36099753]
[1735745146667,1.5395,190.93,190.82,34.36099753]
[1735745147475,1.5395,190.93,190.83,10.58411353]
[1735745147873,1.5395,190.93,190.84,10.58411353]
[1735745149976,1.5395,190.93,190.85,23.776884]
[1735745150689,1.5395,190.93,190.85,10.58411353]
[1735745155793,1.5395,190.93,190.86,10.58411353]
[1735745157953,6.6655,190.97,190.87,34.36099753]
[1735745158158,6.6655,190.97,190.88,10.58411353]
[1735745158370,6.6655,190.97,190.89,10.58411353]
[1735745158872,6.6655,190.97,190.88,10.58411353]
[1735745159076,6.6655,190.97,190.9,1.57232327]
[1735745159660,6.6655,190.97,190.88,10.58411353]
[1735745159860,6.6655,190.97,190.89,10.58411353]
[1735745160992,6.6655,190.97,190.9,1.57198343]
[1735745161782,6.6655,190.97,190.89,10.58411353]
[1735745162882,6.6655,190.97,190.9,1.57233712]
[1735745163474,6.6655,190.97,190.87,34.36099753]
[1735745163989,6.6655,190.97,190.88,1.57239145]
[1735745164373,6.6655,190.97,190.88,12.15650498]
[1735745164879,6.6655,190.97,190.89,1.57239145]
[1735745165499,6.6655,190.97,190.9,1.57239145]
[1735745166191,6.6655,190.97,190.88,10.58411353]
[1735745166897,6.6655,190.97,190.89,1.57262153]
[1735745167704,6.6655,190.97,190.9,1.57262153]
[1735745168387,6.6655,190.97,190.89,23.776884]
[1735745168583,6.6655,190.97,190.9,34.36099753]
[1735745169675,6.6655,190.97,190.89,34.36099753]
[1735745170493,6.6655,190.97,190.9,1.57285061]
[1735745171079,6.6655,190.97,190.89,34.36099753]
[1735745172384,6.6655,190.97,190.9,1.574007]
[1735745173089,6.6655,190.97,190.89,34.36099753]
[1735745173393,1.5436,190.98,190.9,10.58411353]
[1735745174681,1.5436,190.98,190.92,34.36099753]
[1735745175188,6.3495,191.02,190.95,10.58411353]
[1735745176091,6.3495,191.02,190.96,23.776884]
[1735745176278,1.5582,191.03,190.96,10.58411353]
[1735745177474,1.5582,191.03,190.95,10.58411353]
[1735745177679,1.5582,191.03,190.96,23.776884]
[1735745178290,1.5582,191.03,190.95,10.58411353]
[1735745178504,6.2777,191.02,190.91,10.58411353]
[1735745178997,6.2777,191.02,190.92,23.776884]
[1735745179493,6.2777,191.02,190.92,25.34799711]
[1735745180291,6.2777,191.02,190.92,23.776884]
[1735745182900,6.2777,191.02,190.91,23.776884]
[1735745183097,21.5582,190.98,190.82,8.19391966]
[1735745183399,21.5582,190.98,190.88,20.0]
[1735745183986,21.5582,190.98,190.87,10.58411353]
[1735745184184,21.5582,190.98,190.88,34.36099753]
[1735745188410,21.5582,190.98,190.9,23.776884]
[1735745188411,1.5582,190.98,190.9,23.776884]
[1735745188598,1.5582,190.98,190.9,34.36099753]
[1735745190587,1.5234,191.03,190.93,20.0]
[1735745190783,1.5234,191.03,190.95,10.58411353]
[1735745191184,1.5234,191.03,190.94,10.58411353]
[1735745192510,1.5234,191.03,190.95,1.56987463]
[1735745193215,1.5234,191.03,190.94,10.58411353]
[1735745195091,1.5234,191.03,190.93,20.0]
[1735745195810,1.5234,191.03,190.91,10.58411353]
[1735745195992,20.0,191.01,190.92,23.776884]
[1735745196413,20.0,191.01,190.9,10.58411353]
[1735745197108,20.0,191.01,190.91,1.57039327]
[1735745197304,28.2178,190.99,190.91,1.57039327]
[1735745197797,28.2178,190.99,190.88,23.776884]
[1735745198208,28.2178,190.99,190.89,1.57100812]
[1735745198707,30.8357,190.99,190.89,1.57100812]
[1735745198894,30.8357,190.99,190.87,20.0]
[1735745199097,30.8357,190.99,190.85,23.776884]
[1735745199305,1.5025,190.94,190.81,13.1019]
[1735745199505,6.5468,190.93,190.82,10.58411353]
[1735745199710,6.5468,190.93,190.86,1.57136172]
[1735745200420,6.5468,190.93,190.82,30.58411353]
[1735745200798,6.5468,190.93,190.81,10.58411353]
[1735745200999,6.5468,190.93,190.83,1.57218776]
[1735745201506,6.5468,190.93,190.84,1.57218776]
[1735745202314,6.5468,190.93,190.85,1.57218776]
[1735745202830,6.5468,190.93,190.86,1.57218776]
[1735745203425,6.5468,190.93,190.81,23.776884]
[1735745203619,6.5468,190.93,190.82,10.58411353]
[1735745203816,6.5468,190.93,190.82,12.15599971]
[1735745204726,6.5468,190.93,190.83,1.57188618]
[1735745205429,6.5468,190.93,190.82,10.58411353]
[1735745206210,6.5468,190.93,190.84,10.58411353]
[1735745206421,6.5468,190.93,190.85,10.58411353]
[1735745207424,6.5468,190.93,190.86,10.58411353]
[1735745207930,6.5468,190.93,190.87,10.58411353]
[1735745208130,1.5025,190.94,190.88,10.58411353]
[1735745208332,1.5025,190.94,190.89,10.58411353]
[1735745210027,6.5468,190.98,190.9,10.58411353]
[1735745210241,6.5468,190.98,190.91,10.58411353]
[1735745212735,1.5025,190.99,190.93,10.58411353]
[1735745212914,1.5025,190.99,190.94,10.58411353]
[1735745213232,1.5025,190.99,190.93,10.58411353]
[1735745213419,8.1544,191.03,190.95,10.58411353]
[1735745213934,8.1544,191.03,190.96,10.58411353]
[1735745214119,8.1544,191.03,190.96,12.15169033]
[1735745214935,8.1544,191.03,190.96,10.58411353]
[1735745217942,8.1544,191.03,190.95,10.58411353]
[1735745219819,8.1544,191.03,190.92,34.36099753]
[1735745220131,8.1544,191.03,190.92,23.776884]
[1735745220932,8.1544,191.03,190.91,10.58411353]
[1735745222027,20.0,191.0,190.89,23.776884]
[1735745222222,20.0,191.0,190.87,10.58411353]
[1735745222420,20.0,191.0,190.88,23.776884]
[1735745223313,20.0,191.0,190.89,1.5685435]
[1735745223526,1.3,190.99,190.89,1.5685435]
[1735745223835,1.6076,190.97,190.85,10.58411353]
[1735745224036,1.6076,190.97,190.86,23.776884]
[1735745224247,1.6076,190.97,190.86,25.34584924]
[1735745224918,1.6076,190.97,190.87,1.56896524]
[1735745225417,6.332,190.96,190.84,10.58411353]
[1735745225828,8.9503,190.96,190.82,10.58411353]
[1735745226142,8.9503,190.96,190.83,10.58411353]
[1735745226328,8.9503,190.96,190.84,23.776884]
[1735745227659,8.9503,190.96,190.84,10.58411353]
[1735745229345,10.2503,190.96,190.84,10.58411353]
[1735745230628,7.5503,190.96,190.83,10.58411353]
[1735745232153,1.3,190.95,190.83,10.58411353]
[1735745232331,1.3,190.95,190.84,10.58411353]
[1735745233254,7.5503,190.96,190.85,10.58411353]
[1735745234223,7.5503,190.96,190.84,10.58411353]
[1735745236057,7.5503,190.96,190.84,20.0]
[1735745236244,7.5503,190.96,190.87,34.36099753]
[1735745236245,4.932,190.96,190.87,34.36099753]
[1735745237351,4.932,190.96,190.88,10.58411353]